fUSD/lending_fUSD_20250724
["ID","MTS","AMOUNT","RATE_DAILY","PERIOD"]
[374539517,1753344635214,-859.0,0.000257,5]
[374539518,1753344635224,-1000.0,0.000257,4]
[374539519,1753344635234,-4006.64740148,0.000257,2]
[374539520,1753344635245,-8429.8598322,0.00025752,3]
[374539521,1753344635255,-307.76,0.00025757,2]
[374539522,1753344635264,-2018.0,0.00025763,2]
[374539523,1753344635274,-563.0,0.00025763,2]
[374539524,1753344635286,-960.0,0.00025763,2]
[374539525,1753344635296,-596.0,0.00025763,2]
[374539526,1753344635306,-300.0,0.00025785,2]
[374539527,1753344635316,-200.0,0.00025791,2]
[374539528,1753344635326,-200.0,0.00025792,2]
[374539529,1753344635335,-632.44249111,0.00025797,13]
[374539530,1753344635345,-2000.0,0.000258,2]
[374539531,1753344635354,-700.0,0.000258,9]
[374539532,1753344635363,-207.0,0.0002583,2]
[374539533,1753344635372,-191.11852253,0.00025858,2]
[374539534,1753344635380,-8429.8598322,0.0002587,3]
[374539535,1753344635389,-6082.163,0.0002588,11]
[374539536,1753344635399,-361.679,0.0002588,11]
[374539537,1753344635407,-174.0,0.0002589,7]
[374539538,1753344635415,-172.0,0.0002589,7]
[374539539,1753344635424,-2863.8914,0.00025891,2]
[374539540,1753344635433,-1000.0,0.00025899,2]
[374539541,1753344635442,-158.46594933,0.000259,2]
[374539542,1753344635450,-682.95256307,0.000259,2]
[374539543,1753344635459,-1000.0,0.000259,9]
[374539544,1753344635468,-436.72848482,0.000259,2]
[374539545,1753344635477,-150.0,0.00025911,2]
[374539546,1753344635486,-203.42178281,0.00025911,2]
[374539547,1753344635495,-4508.7313,0.00025918,2]
[374539548,1753344635503,-150.0,0.00025918,2]
[374539549,1753344635512,-8429.8598322,0.00025934,3]
[374539550,1753344635522,-150.0,0.00025954,7]
[374539551,1753344635531,-249.00171344,0.00025954,7]
[374539552,1753344635539,-200.0,0.00025954,2]
[374539553,1753344635549,-150.48551713,0.00025954,7]
[374539554,1753344635557,-500.0,0.00025954,7]
[374539555,1753344635567,-675.0,0.00025954,7]
[374539556,1753344635575,-150.0,0.00025954,7]
[374539557,1753344635585,-150.0,0.00025954,2]
[374539558,1753344635594,-758.0,0.00025954,7]
[374539559,1753344635603,-150.0,0.00025954,7]
[374539560,1753344635613,-150.0,0.00025954,7]
[374539561,1753344635621,-150.0,0.00025954,7]
[374539562,1753344635630,-1688.0,0.00025955,2]
[374539563,1753344635639,-217.5,0.00025958,2]
[374539564,1753344635647,-8429.8598322,0.0002597,3]
[374539565,1753344635655,-8429.8598322,0.00025971,3]
[374539566,1753344635664,-160.0,0.00025972,3]
[374539567,1753344635674,-244.61895583,0.00025973,2]
[374539568,1753344635683,-500.0,0.00025973,2]
[374539569,1753344635692,-503.02584058,0.00025973,2]
[374539570,1753344635701,-509.20696183,0.00025973,2]
[374539571,1753344635713,-500.0,0.00025973,2]
[374539572,1753344635724,-8429.8598322,0.0002598,3]
[374539573,1753344635734,-16859.7196644,0.0002598,3]
[374539574,1753344635742,-84298.598322,0.00025981,3]
[374539575,1753344635751,-28347.9501352,0.00025981,3]
[374539576,1753344635762,-16859.7196644,0.00025982,3]
[374539577,1753344635772,-14173.9750676,0.00025982,3]
[374539578,1753344635782,-154.90640027,0.00025982,2]
[374539579,1753344635792,-160.27,0.00025982,2]
[374539580,1753344635804,-59009.0188254,0.0002599,3]
[374539581,1753344635814,-56695.9002705,0.0002599,3]
[374539582,1753344635824,-8429.8598322,0.0002599,3]
[374539583,1753344635835,-143819.34146367,0.0002599,3]
[374539584,1753344636125,-139553.52153008,0.0002599,3]
[374539585,1753344636263,-2034.8900638,0.0002599,3]
[374539586,1753344636275,-2309.66954434,0.0002599,3]
[374539587,1753344636288,-281.31637376,0.0002599,3]
[374539590,1753344639477,-576.937737,0.00021917,2]
[374539591,1753344639487,-576.937737,0.00021917,2]
[374539592,1753344639497,-576.937737,0.00021917,2]
[374539593,1753344639507,-576.937737,0.00021917,2]
[374539594,1753344639517,-576.937737,0.00021917,2]
[374539595,1753344639527,-576.937737,0.00022191,2]
[374539596,1753344639538,-240.373578,0.00025436,2]
[374539597,1753344639550,-41.661422,0.00025436,2]
[374539598,1753344639560,-2928.98523053,0.0002599,3]
[374539635,1753344640267,-15415.03768697,0.0002599,3]
[374539637,1753344640279,-4241.29370336,0.0002599,3]
[374539663,1753344640500,-552.42745945,0.0002599,3]
[374539689,1753344640743,-4099.22215129,0.0002599,3]
[374539692,1753344640756,-369.81267983,0.0002599,3]
[374539694,1753344640767,-953.88498655,0.0002599,3]
[374539731,1753344641139,-9442.02368137,0.0002599,3]
[374539733,1753344641149,-160.27,0.0002599,2]
[374539735,1753344641158,-151.0,0.00025991,7]
[374539737,1753344641168,-1421.739792,0.00025991,7]
[374539739,1753344641178,-1421.739792,0.00025991,7]
[374539741,1753344641187,-166.159142,0.00025991,7]
[374539769,1753344641513,-166.159142,0.00025991,7]
[374539774,1753344641564,-151.277488,0.00025991,2]
[374539776,1753344641574,-151.0,0.00025991,7]
[374539778,1753344641584,-151.0,0.00025991,7]
[374539780,1753344641593,-151.0,0.00025991,7]
[374539782,1753344641603,-29485.3289881,0.00025991,2]
[374539784,1753344641612,-108748.7489859,0.00025991,2]
[374539785,1753344641622,-8935.6652945,0.00025991,2]
[374539787,1753344641631,-731.3356504,0.00025991,2]
[374539789,1753344641641,-3846.801041,0.00025991,2]
[374539791,1753344641651,-151.0,0.00025992,7]
[374539793,1753344641661,-202.078526,0.00025992,7]
[374539795,1753344641670,-202.078526,0.00025992,7]
[374539796,1753344641680,-152.33685,0.00025992,7]
[374539798,1753344641690,-1252.5616074,0.00025992,2]
[374539800,1753344641699,-1065.0205548,0.00025992,2]
[374539802,1753344641708,-400.8686039,0.00025992,2]
[374539804,1753344641717,-32901.8367473,0.00025992,2]
[374539806,1753344641731,-464.24649179,0.00025992,2]
[374539808,1753344641741,-4316.1214497,0.00025992,2]
[374539810,1753344641750,-151.0,0.00025998,7]
[374539812,1753344641761,-151.0,0.00025998,7]
[374539813,1753344641770,-151.0,0.00025998,7]
[374539815,1753344641780,-151.0,0.00025998,7]
[374539817,1753344641791,-151.0,0.00025998,7]
[374539819,1753344641802,-151.0,0.00025998,7]
[374539821,1753344641812,-370.573205,0.00025998,7]
[374539823,1753344641822,-370.573205,0.00025998,7]
[374539824,1753344641832,-306.76977049,0.00025999,10]
[374539826,1753344641841,-300.0,0.00025999,10]
[374539828,1753344641851,-150.0,0.00025999,15]
[374539830,1753344641861,-1000.0,0.00025999,2]
[374539832,1753344641872,-1047.8601982,0.00025999,5]
[374539834,1753344641883,-2546.89,0.00025999,2]
[374539836,1753344641895,-601.23428022,0.00026,2]
[374539838,1753344641907,-8965.9599515,0.00026,2]
[374539840,1753344641917,-93000.051771,0.00026,2]
[374539842,1753344641927,-13076.01,0.00026,3]
[374539844,1753344641937,-792959.3617625,0.00026,5]
[374539900,1753344642546,-10747.94821,0.00026,5]
[374539902,1753344642558,-321.3975955,0.00026,5]
[374540086,1753344644296,-153.0,0.00025654,2]
[374540088,1753344644306,-153.0,0.00025654,2]
[374540090,1753344644315,-153.0,0.00025654,2]
[374540092,1753344644325,-153.0,0.00025654,2]
[374540094,1753344644335,-6064.65952609,0.00026,5]
[374540096,1753344644356,-43064.3931014,0.00026,5]
[374540108,1753344644465,-379.75600202,0.00025544,2]
[374540119,1753344644554,-120.24399798,0.00025544,2]
[374540121,1753344644565,-153.0,0.00025654,2]
[374540123,1753344644574,-5715.81367176,0.00026,5]
[374540154,1753344644872,399.74,0.00027397,120]
[374540206,1753344645358,-641.62225,0.00025544,2]
[374540209,1753344645369,-153.0,0.00025654,2]
[374540210,1753344645378,-125.53322964,0.00025654,2]
[374540377,1753344646929,-500.0,0.00025544,2]
[374540381,1753344646941,-27.46677036,0.00025654,2]
[374540383,1753344646951,-153.0,0.00025654,2]
[374540384,1753344646960,-153.0,0.00025654,2]
[374540387,1753344646970,-153.0,0.00025654,2]
[374540389,1753344646980,-57873.17568845,0.00026,5]
[374540393,1753344647010,-18423.88702624,0.00026,5]
[374540399,1753344647062,-261.0815,0.00025544,2]
[374540401,1753344647072,-462.26535075,0.00026,5]
[374540410,1753344647145,-128506.49058058,0.00026,5]
[374541277,1753344670143,152.0,0.00026017,120]
[374541278,1753344670637,152.0,0.00026007,120]
[374541279,1753344671086,152.0,0.00025997,120]
[374541280,1753344793471,500.0,0.00027397,120]
[374541281,1753344799819,500.0,0.00027397,120]
[374541282,1753344981673,-158.6633808,0.00026027,30]
[374541283,1753344981695,-212.64658861,0.00026055,30]
[374541284,1753344981717,-212.64658861,0.00026164,30]
[374541285,1753344981739,-212.64658861,0.00026274,30]
[374541286,1753344981761,-158.6633808,0.00026329,30]
[374541287,1753344981782,-212.64658861,0.00026356,30]
[374541288,1753344981806,-212.64658861,0.00026466,30]
[374541289,1753344981835,-212.64658861,0.00026575,30]
[374541290,1753344981856,-212.64658861,0.00026685,30]
[374541291,1753344981881,-212.64658861,0.00026795,30]
[374541292,1753344981904,-212.64658861,0.00026877,30]
[374541293,1753344981946,-250.0,0.00027397,30]
[374541294,1753344981970,-1776.34,0.00027425,30]
[374541295,1753344981991,-153.0,0.0002749,120]
[374541296,1753344982026,-34520.51394091,0.00028,120]
[374541297,1753345092308,-5000.0,0.00028,120]
[374541298,1753345116967,-2000.0,0.00028,120]
[374541329,1753345273007,2000.0,0.00027,120]
[374541331,1753345334913,2988.0,0.000272,120]
[374541332,1753345361412,279.57,0.00026968,120]
[374541333,1753345524163,168.94,0.00013699,2]
[374541341,1753345614730,150.0,0.00027397,120]
[374541351,1753345716381,1128.99,0.000151,2]
[374541395,1753345832157,-168.94,0.00020187,2]
[374541398,1753345832167,-611.18139315,0.00020415,2]
[374541404,1753345832218,-1888.81860685,0.00020415,2]
[374541406,1753345832228,-968.27405292,0.00020642,2]
[374541410,1753345832265,-1531.72594708,0.00020642,2]
[374541412,1753345832275,-2500.0,0.0002098,2]
[374541414,1753345832284,-3350.41256595,0.00021097,2]
[374541416,1753345832294,-1200.0,0.00021355,2]
[374541418,1753345832303,-3350.41256593,0.00021356,2]
[374541420,1753345832313,-300.0,0.00021614,2]
[374541422,1753345832322,-300.0,0.00021614,2]
[374541424,1753345832333,-3350.41256593,0.00021615,2]
[374541426,1753345832342,-377.0,0.00022,2]
[374541428,1753345832351,-2500.0,0.00022206,2]
[374541430,1753345832361,-2500.0,0.00022206,2]
[374541432,1753345832370,-1541.77,0.00022382,2]
[374541434,1753345832379,-344.56,0.00022869,2]
[374541436,1753345832389,-632.654213,0.000229,8]
[374541438,1753345832398,-632.65421294,0.00023176,8]
[374541440,1753345832408,-369.0,0.0002318,2]
[374541442,1753345832417,-511.0,0.00023255,2]
[374541444,1753345832427,-1680.0,0.00023331,2]
[374541446,1753345832436,-632.65421294,0.00023452,9]
[374541448,1753345832446,-300.0,0.00023528,2]
[374541450,1753345832455,-200.0,0.00023528,2]
[374541452,1753345832465,-180.0,0.00023609,7]
[374541454,1753345832475,-200.0,0.00023639,2]
[374541456,1753345832484,-925.37,0.00023654,2]
[374541458,1753345832494,-532.48,0.000237,2]
[374541460,1753345832503,-666.0,0.00023705,3]
[374541462,1753345832512,-632.65421294,0.00023728,9]
[374541464,1753345832521,-180.10601631,0.0002377,2]
[374541466,1753345832531,-5964.94,0.00023951,7]
[374541468,1753345832540,-524.37,0.00023951,2]
[374541470,1753345832551,-250.0,0.00023953,2]
[374541472,1753345832561,-200.0,0.00023958,2]
[374541474,1753345832571,-594.06,0.00023962,2]
[374541476,1753345832581,-4492.53963629,0.00023968,2]
[374541482,1753345832633,-507.46036371,0.00023968,2]
[374541485,1753345832643,-279.57,0.00023971,2]
[374541487,1753345832653,-713.21963629,0.0002398,2]
[374541493,1753345832705,-598.20631109,0.0002398,2]
[374541498,1753345832740,-2268.73340949,0.0002398,2]
[374541502,1753345832770,-513.43064313,0.0002398,2]
[374541504,1753345832780,-2751.0,0.0002398,2]
[374541506,1753345832789,-161.9,0.00023981,2]
[374541508,1753345832799,-344.12,0.00023987,2]
[374541510,1753345832808,-5000.00704037,0.00024,5]
[374541512,1753345832817,-632.65421294,0.00024003,10]
[374541514,1753345832826,-150.0,0.0002407,2]
[374541516,1753345832836,-150.0,0.00024182,2]
[374541518,1753345832847,-296.12274214,0.00024201,2]
[374541520,1753345832856,-206.73126404,0.00024201,2]
[374541522,1753345832865,-839.91269601,0.00024221,2]
[374541524,1753345832875,-477.18900901,0.00024221,2]
[374541526,1753345832884,-211.01152796,0.00024221,2]
[374541528,1753345832893,-160.0,0.00024221,2]
[374541530,1753345832903,-511.0,0.00024248,3]
[374541532,1753345832912,-3451.92748285,0.00024256,2]
[374541534,1753345832924,-5438.62654493,0.00024256,2]
[374541536,1753345832933,-632.65421294,0.00024279,10]
[374541538,1753345832942,-737.52495523,0.00024366,2]
[374541540,1753345832953,-262.47504477,0.00024366,2]
[374541542,1753345832963,-362.0,0.0002437,2]
[374541543,1753345832972,-152.0,0.00024391,3]
[374541544,1753345832982,-157.07,0.00024493,2]
[374541545,1753345832991,-632.65421294,0.00024555,11]
[374541546,1753345833001,-157.07,0.00024575,2]
[374541547,1753345833010,-157.07,0.00024656,2]
[374541548,1753345833024,-150.0,0.00024668,2]
[374541549,1753345833034,-500.0,0.00024698,2]
[374541550,1753345833044,-164.45734943,0.00024698,2]
[374541551,1753345833054,-500.0,0.00024698,2]
[374541552,1753345833064,-500.0,0.00024698,2]
[374541553,1753345833074,-500.0,0.00024698,2]
[374541554,1753345833084,-500.0,0.00024698,2]
[374541555,1753345833095,-500.0,0.00024698,2]
[374541556,1753345833104,-500.0,0.00024698,2]
[374541557,1753345833114,-500.0,0.00024698,2]
[374541559,1753345833125,-500.0,0.00024698,2]
[374541561,1753345833135,-500.0,0.00024698,2]
[374541563,1753345833145,-418.40029226,0.00024698,2]
[374541578,1753345833292,-81.59970774,0.00024698,2]
[374541580,1753345833304,-231.28369723,0.00024698,2]
[374541582,1753345833314,-500.0,0.00024698,2]
[374541584,1753345833324,-500.0,0.00024698,2]
[374541586,1753345833334,-500.0,0.00024698,2]
[374541588,1753345833344,-348.93473459,0.00024698,2]
[374541591,1753345833357,-151.06526541,0.00024698,2]
[374541593,1753345833367,-500.0,0.00024698,2]
[374541594,1753345833377,-157.07,0.00024738,2]
[374541596,1753345833386,-169.26,0.00024787,2]
[374541598,1753345833395,-632.65421294,0.00024831,12]
[374541600,1753345833405,-167.95,0.00024858,2]
[374541602,1753345833415,-150.0,0.00024887,2]
[374541604,1753345833425,-2000.0,0.000249,2]
[374541606,1753345833435,-333.13891135,0.000249,2]
[374541609,1753345833447,-462.33081884,0.000249,2]
[374541996,1753345837351,-38714.87532908,0.000249,2]
[374541997,1753345837362,-3356.86586675,0.000249,2]
[374541999,1753345837372,-150.0,0.00024903,2]
[374542001,1753345837381,-150.0,0.00024939,2]
[374542003,1753345837392,-3744.78853643,0.00025,2]
[374542005,1753345837404,-1255.21146357,0.00025,2]
[374542007,1753345837414,-152.91,0.00025,2]
[374542009,1753345837423,-172.0,0.00025,7]
[374542011,1753345837432,-152.97575867,0.00025,2]
[374542013,1753345837442,-150.0,0.0002504,2]
[374542014,1753345837451,-680.07,0.00025041,2]
[374542016,1753345837460,-201.731165,0.000251,2]
[374542018,1753345837470,-632.65421294,0.00025107,12]
[374542020,1753345837479,-152.0,0.0002514,4]
[374542022,1753345837489,-150.0,0.00025164,2]
[374542024,1753345837498,-459.31,0.00025178,2]
[374542026,1753345837507,-161.9,0.0002518,2]
[374542027,1753345837516,-1206.0,0.000252,2]
[374542029,1753345837526,-150.0,0.00025215,2]
[374542031,1753345837535,-511.0,0.00025241,5]
[374542033,1753345837545,-209.67232583,0.00025248,2]
[374542035,1753345837554,-150.0,0.00025324,2]
[374542037,1753345837576,-632.65421294,0.00025383,13]
[374542039,1753345837585,-150.0,0.00025441,2]
[374542041,1753345837596,-150.0,0.00025471,2]
[374542043,1753345837606,-1669.077039,0.0002548,16]
[374542045,1753345837615,-150.0,0.00025481,2]
[374542047,1753345837625,-400.42638218,0.000255,10]
[374542049,1753345837634,-300.0,0.00025529,2]
[374542050,1753345837643,-354.0,0.0002555,2]
[374542052,1753345837653,-166.10091954,0.00025582,2]
[374542054,1753345837663,-150.0,0.0002562,2]
[374542056,1753345837672,-150.0,0.0002564,2]
[374542058,1753345837682,-153.0,0.00025654,2]
[374542060,1753345837692,-153.0,0.00025654,2]
[374542062,1753345837702,-153.0,0.00025654,2]
[374542064,1753345837711,-153.0,0.00025654,2]
[374542066,1753345837721,-153.0,0.00025654,2]
[374542068,1753345837731,-153.0,0.00025654,2]
[374542069,1753345837740,-153.0,0.00025654,2]
[374542071,1753345837749,-153.0,0.00025654,2]
[374542073,1753345837758,-153.0,0.00025654,2]
[374542075,1753345837768,-153.0,0.00025654,2]
[374542077,1753345837778,-153.0,0.00025654,2]
[374542079,1753345837791,-153.0,0.00025654,2]
[374542081,1753345837800,-153.0,0.00025654,2]
[374542083,1753345837810,-153.0,0.00025654,2]
[374542084,1753345837818,-89.9586025,0.00025654,2]
[374542087,1753345837831,-63.0413975,0.00025654,2]
[374542088,1753345837841,-153.0,0.00025654,2]
[374542090,1753345837851,-153.0,0.00025654,2]
[374542092,1753345837861,-153.0,0.00025654,2]
[374542094,1753345837871,-143.34987133,0.00025654,2]
[374542124,1753345838201,-9.65012867,0.00025654,2]
[374542130,1753345838251,-153.0,0.00025654,2]
[374542132,1753345838260,-153.0,0.00025654,2]
[374542133,1753345838270,-153.0,0.00025654,2]
[374542135,1753345838279,-153.0,0.00025654,2]
[374542137,1753345838289,-153.0,0.00025654,2]
[374542139,1753345838298,-153.0,0.00025654,2]
[374542140,1753345838307,-153.0,0.00025654,2]
[374542141,1753345838317,-153.0,0.00025654,2]
[374542142,1753345838325,-153.0,0.00025654,2]
[374542143,1753345838334,-153.0,0.00025654,2]
[374542144,1753345838344,-153.0,0.00025654,2]
[374542145,1753345838353,-153.0,0.00025654,2]
[374542146,1753345838362,-153.0,0.00025654,2]
[374542147,1753345838371,-153.0,0.00025654,2]
[374542148,1753345838379,-153.0,0.00025654,2]
[374542149,1753345838389,-153.0,0.00025654,2]
[374542150,1753345838398,-153.0,0.00025654,2]
[374542151,1753345838407,-153.0,0.00025654,2]
[374542152,1753345838416,-153.0,0.00025654,2]
[374542153,1753345838425,-153.0,0.00025654,2]
[374542154,1753345838434,-153.0,0.00025654,2]
[374542156,1753345838444,-153.0,0.00025654,2]
[374542157,1753345838454,-153.0,0.00025654,2]
[374542159,1753345838463,-153.0,0.00025654,2]
[374542161,1753345838473,-153.0,0.00025654,2]
[374542163,1753345838482,-153.0,0.00025654,2]
[374542165,1753345838493,-153.0,0.00025654,2]
[374542167,1753345838503,-153.0,0.00025654,2]
[374542169,1753345838513,-153.0,0.00025654,2]
[374542171,1753345838522,-153.0,0.00025654,2]
[374542173,1753345838531,-153.0,0.00025654,2]
[374542175,1753345838541,-153.0,0.00025654,2]
[374542177,1753345838551,-153.0,0.00025654,2]
[374542179,1753345838562,-153.0,0.00025654,2]
[374542181,1753345838571,-153.0,0.00025654,2]
[374542183,1753345838581,-153.0,0.00025654,2]
[374542185,1753345838591,-153.0,0.00025654,2]
[374542187,1753345838600,-153.0,0.00025654,2]
[374542189,1753345838611,-153.0,0.00025654,2]
[374542191,1753345838621,-153.0,0.00025654,2]
[374542193,1753345838630,-153.0,0.00025654,2]
[374542195,1753345838640,-153.0,0.00025654,2]
[374542197,1753345838649,-153.0,0.00025654,2]
[374542199,1753345838659,-153.0,0.00025654,2]
[374542201,1753345838669,-153.0,0.00025654,2]
[374542203,1753345838679,-153.0,0.00025654,2]
[374542205,1753345838688,-153.0,0.00025654,2]
[374542207,1753345838698,-153.0,0.00025654,2]
[374542209,1753345838707,-153.0,0.00025654,2]
[374542211,1753345838716,-153.0,0.00025654,2]
[374542213,1753345838725,-153.0,0.00025654,2]
[374542215,1753345838735,-153.0,0.00025654,2]
[374542217,1753345838745,-153.0,0.00025654,2]
[374542219,1753345838755,-153.0,0.00025654,2]
[374542221,1753345838764,-153.0,0.00025654,2]
[374542223,1753345838774,-153.0,0.00025654,2]
[374542225,1753345838783,-153.0,0.00025654,2]
[374542227,1753345838796,-153.0,0.00025654,2]
[374542229,1753345838806,-153.0,0.00025654,2]
[374542231,1753345838816,-153.0,0.00025654,2]
[374542233,1753345838825,-153.0,0.00025654,2]
[374542235,1753345838835,-153.0,0.00025654,2]
[374542237,1753345838845,-153.0,0.00025654,2]
[374542240,1753345838855,-153.0,0.00025654,2]
[374542242,1753345838864,-153.0,0.00025654,2]
[374542244,1753345838875,-153.0,0.00025654,2]
[374542246,1753345838884,-153.0,0.00025654,2]
[374542248,1753345838894,-153.0,0.00025654,2]
[374542250,1753345838903,-153.0,0.00025654,2]
[374542252,1753345838913,-153.0,0.00025654,2]
[374542254,1753345838922,-153.0,0.00025654,2]
[374542256,1753345838932,-153.0,0.00025654,2]
[374542258,1753345838942,-153.0,0.00025654,2]
[374542260,1753345838951,-153.0,0.00025654,2]
[374542262,1753345838962,-153.0,0.00025654,2]
[374542264,1753345838971,-153.0,0.00025654,2]
[374542266,1753345838980,-153.0,0.00025654,2]
[374542268,1753345838989,-153.0,0.00025654,2]
[374542270,1753345838999,-153.0,0.00025654,2]
[374542272,1753345839013,-153.0,0.00025654,2]
[374542275,1753345839027,-153.0,0.00025654,2]
[374542277,1753345839037,-153.0,0.00025654,2]
[374542279,1753345839047,-153.0,0.00025654,2]
[374542281,1753345839057,-153.0,0.00025654,2]
[374542283,1753345839067,-632.65421294,0.00025659,13]
[374542285,1753345839077,-150.0,0.00025681,2]
[374542287,1753345839088,-150.0,0.00025777,2]
[374542289,1753345839099,-7751.27335694,0.00025782,2]
[374542364,1753345839989,-668.5569758,0.00025782,2]
[374542366,1753345839997,-200.0,0.00025792,2]
[374542368,1753345840006,-152.0,0.00025888,5]
[374542370,1753345840015,-289.344,0.0002589,11]
[374542372,1753345840028,-4865.73,0.0002589,11]
[374542374,1753345840037,-172.00667025,0.0002589,2]
[374542376,1753345840047,-617.5968,0.0002589,2]
[374542379,1753345840057,-172.0,0.0002589,7]
[374542380,1753345840068,-156.03889392,0.000259,3]
[374542387,1753345840119,-3.96110608,0.000259,3]
[374542389,1753345840128,-477.18900901,0.0002591,3]
[374542391,1753345840138,-211.01152796,0.0002591,3]
[374542393,1753345840147,-839.91269601,0.0002591,3]
[374542395,1753345840156,-886.96193809,0.00025914,7]
[374542397,1753345840167,-248.03806191,0.00025914,7]
[374542399,1753345840176,-632.65421294,0.00025934,14]
[374542401,1753345840186,-150.0,0.00025935,2]
[374542403,1753345840195,-150.0,0.00025954,7]
[374542405,1753345840205,-150.0,0.00025954,7]
[374542407,1753345840215,-150.0,0.00025954,7]
[374542409,1753345840224,-150.0,0.00025954,7]
[374542411,1753345840233,-204.94061184,0.00025954,7]
[374542413,1753345840243,-150.0,0.00025954,7]
[374542415,1753345840252,-150.0,0.00025954,2]
[374542417,1753345840262,-722.0,0.00025954,7]
[374542419,1753345840271,-204.04885517,0.00025954,7]
[374542421,1753345840281,-150.0,0.00025954,7]
[374542423,1753345840290,-477.18900901,0.0002596,7]
[374542425,1753345840300,-211.01152796,0.0002596,7]
[374542427,1753345840310,-839.91269601,0.0002596,7]
[374542429,1753345840319,-151.0,0.00025966,2]
[374542431,1753345840329,-370.33650691,0.00025973,2]
[374542434,1753345840339,-505.36782184,0.00025973,2]
[374542435,1753345840348,-500.0,0.00025973,2]
[374542438,1753345840358,-500.0,0.00025973,2]
[374542439,1753345840367,-500.90731436,0.00025973,2]
[374542442,1753345840378,-150.0,0.0002598,2]
[374542444,1753345840388,-1657.89338205,0.00025987,2]
[374542446,1753345840400,-415.92029992,0.00025987,2]
[374542642,1753345842359,-699.92799513,0.000192,2]
[374542645,1753345842371,-277.41200487,0.000192,2]
[374542647,1753345842380,-977.34,0.0002093,2]
[374542648,1753345842389,-58.71804661,0.0002266,2]
[374542891,1753345844662,-898.29933228,0.0002266,2]
[374542912,1753345844855,-20.32262111,0.0002266,2]
[374542914,1753345844866,-977.34,0.00024391,2]
[374542916,1753345844875,-194.02732895,0.00025987,2]
[374542918,1753345844887,-1238.46665368,0.00025987,2]
[374542920,1753345844899,-309.21,0.00025987,2]
[374542940,1753345845089,-1517.54614458,0.00025987,2]
[374542942,1753345845104,-1458.95475247,0.00025989,3]
[374542957,1753345845233,-3635.8,0.00025989,3]
[374542959,1753345845245,-652.78000001,0.00025989,3]
[374542968,1753345845316,-871.95473295,0.00025989,3]
[374542970,1753345845326,-989.9669,0.0002599,2]
[374542972,1753345845336,-22836.03747657,0.0002599,3]
[374543197,1753345847516,-835.89,0.00025112,2]
[374543199,1753345847526,-1000.0,0.000257,2]
[374543201,1753345847536,-874.49525352,0.0002599,3]
[374543203,1753345847549,-148396.19389091,0.0002599,3]
[374543205,1753345847559,-136543.045673,0.0002599,3]
[374543207,1753345847569,-584.60882594,0.0002599,2]
[374543209,1753345847578,-477.18900901,0.0002599,3]
[374543211,1753345847588,-6619.48948543,0.00025997,3]
[374543213,1753345847599,-150.0,0.00025999,15]
[374543215,1753345847609,-1004.7426,0.00025999,2]
[374543217,1753345847619,-1000.0,0.00025999,2]
[374543219,1753345847629,-1000.0,0.00025999,2]
[374543221,1753345847638,-2440.77,0.00025999,2]
[374543223,1753345847648,-1922.07017615,0.00025999,2]
[374543225,1753345847658,-306930.88309584,0.00026,5]
[374543228,1753345847668,-1449.5,0.00026,7]
[374543229,1753345847677,-2002.17481236,0.00026,5]
[374543231,1753345847687,-2004.39,0.00026,3]
[374543234,1753345847696,-1000.0,0.00026,2]